Cogmind - Beta 9.4 @@@ ROGUE MODE // 2020.01.10 @ 09:22:11 // Winter2019/RPGLIKE Player: Terminus Result: Self-destructed Performance ------------- Evolutions (4) 2000 Regions Visited (15) 3000 Robots Destroyed (137) 685 Value Destroyed (3756) 3756 Prototype IDs (26) 520 Alien Tech Used (0) 0 Bonus (-318) -318 TOTAL SCORE: 9643 Bonus ------- High Alert Combat Kills 236 Follower Combat Kills 21 Met Data Miner 300 Friendly Fire -875 Cogmind --------- Core Integrity 700/700 Matter 224/300 Energy 150/150 System Corruption 5% Temperature Cool (30) Movement Core (150) Ox2 Location -6/Factory Parts ------- > --- POWER (1) -------- Light Angular Momentum Engine > --- PROPULSION (4) --- Improved Flight Unit Improved Flight Unit Xenon Bombardment Thruster Xenon Bombardment Thruster > --- UTILITY (8) ------ Advanced Signal Interpreter Advanced Salvage Targeting Computer Advanced Targeting Computer Improved Hacking Suite Improved Hacking Suite Improved Hacking Suite System Shield Improved System Backup Module > --- WEAPON (4) ------- Hypervelocity Coil Gun Hypervelocity Coil Gun Hypervelocity Coil Gun Hypervelocity Coil Gun > --- INVENTORY (4) ---- Cooling System Proton Missile Launcher Remote Datajack Spear Peak State ------------ > --- POWER ------------ Light Angular Momentum Engine > --- PROPULSION ------- Improved Flight Unit Improved Flight Unit Xenon Bombardment Thruster Xenon Bombardment Thruster > --- UTILITY ---------- Advanced Signal Interpreter Advanced Salvage Targeting Computer Advanced Targeting Computer Improved Hacking Suite Improved Hacking Suite Improved Hacking Suite System Shield Improved System Backup Module > --- WEAPON ----------- Hypervelocity Coil Gun Hypervelocity Coil Gun Hypervelocity Coil Gun Hypervelocity Coil Gun > --- INVENTORY -------- Cooling System Proton Missile Launcher Remote Datajack Spear [Rating: 79] Favorites ----------- Power Improved Ion Engine Engine Improved Ion Engine Power Core Light Nuclear Core Propulsion Improved Flight Unit Leg Aluminum Leg Flight Unit Improved Flight Unit Utility Light Armor Plating Device Cooling System Storage High-capacity Matter Pod Processor Advanced Signal Interpreter Hackware Hacking Suite Protection Light Armor Plating Weapon Advanced Beam Rifle Energy Gun Advanced Beam Rifle Energy Cannon Particle Cannon Ballistic Gun Hypervelocity Coil Gun Ballistic Cannon Improved Light Cannon Launcher Rocket Launcher Special Weapon Remote Datajack Slashing Weapon Axe Piercing Weapon Spear Build | -11 -10 -10 -10 -9 -8 -7 -7 -7 -7 -7 -7 -6 -6 -6 -6 ------- Run | Scr Mat Min Exi Min Mat Fac Was Fac Low Low Dat Pro Fac Was Fac Slots Evolved 13 | 4 . 3 . 1 2 2 . . . . . 1 . . . Power . | . . . . . . . . . . . . . . . . Propulsion 3 | 1 . 1 . . 1 . . . . . . . . . . Utility 7 | 2 . 2 . . 1 1 . . . . . 1 . . . Weapon 3 | 1 . . . 1 . 1 . . . . . . . . . Parts Attached 100 | 5 7 3 . 10 29 25 1 6 . 1 . . 12 1 . Power 13 | 1 1 . . . 4 3 . . . 1 . . 3 . . Engine 11 | 1 1 . . . 4 3 . . . . . . 2 . . Core 2 | . . . . . . . . . . 1 . . 1 . . Reactor . | . . . . . . . . . . . . . . . . Propulsion 15 | 2 . 1 . 1 8 . . 3 . . . . . . . Treads . | . . . . . . . . . . . . . . . . Leg 4 | 2 . . . 1 1 . . . . . . . . . . Wheel . | . . . . . . . . . . . . . . . . Hover . | . . . . . . . . . . . . . . . . Flight 11 | . . 1 . . 7 . . 3 . . . . . . . Utility 29 | . 3 2 . 4 4 9 1 1 . . . . 4 1 . Device 11 | . . 1 . 2 2 5 . . . . . . . 1 . Storage 1 | . . 1 . . . . . . . . . . . . . Processor 5 | . . . . . 2 2 1 . . . . . . . . Hackware 7 | . . . . . . 2 . 1 . . . . 4 . . Protection 5 | . 3 . . 2 . . . . . . . . . . . Artifact . | . . . . . . . . . . . . . . . . Weapon 43 | 2 3 . . 5 13 13 . 2 . . . . 5 . . Energy Gun 23 | 1 1 . . 1 11 9 . . . . . . . . . Energy Cannon 1 | . . . . 1 . . . . . . . . . . . Ballistic Gun 7 | 1 . . . 1 1 . . . . . . . 4 . . Ballistic Cannon 4 | . 2 . . 1 1 . . . . . . . . . . Launcher 2 | . . . . 1 . 1 . . . . . . . . . Special Weapon 4 | . . . . . . 3 . . . . . . 1 . . Impact Weapon . | . . . . . . . . . . . . . . . . Slashing Weapon 1 | . . . . . . . . 1 . . . . . . . Piercing Weapon 1 | . . . . . . . . 1 . . . . . . . Special Melee Weapon . | . . . . . . . . . . . . . . . . Unidentified Prototypes 12 | . . . . . 8 3 . . . . . . 1 . . Parts Lost 2 | . . 1 . . . . . 1 . . . . . . . Power . | . . . . . . . . . . . . . . . . Propulsion . | . . . . . . . . . . . . . . . . Utility 1 | . . 1 . . . . . . . . . . . . . Weapon 1 | . . . . . . . . 1 . . . . . . . Highest Loss Streak 1 | . . 1 . . . . . 1 . . . . . . . Average Slot Usage (%) 92 | . 91 82 90 96 94 90 93 91 93 91 93 88 98 100 100 Engine 6 | . 12 10 9 8 7 6 6 6 6 . . . . 5 5 Leg 8 | . 25 20 18 16 6 . . . . . . . . . . Flight 16 | . . 2 9 8 20 27 25 24 25 25 25 23 23 23 23 Device 9 | . . 1 9 13 18 19 12 10 6 6 6 5 5 5 5 Storage 2 | . . 1 9 8 7 . . . . . . . . . . Processor 8 | . . . . . 5 14 18 18 18 18 18 17 17 17 17 Hackware 6 | . . . . . . 1 12 13 18 18 18 17 23 23 23 Protection 9 | . 29 24 18 16 4 . . . . . . . . . . Energy Gun 7 | . . . . 5 12 19 18 12 12 12 12 11 5 . . Ballistic Gun 5 | . . . . 7 7 . . . . . . . 9 23 23 Ballistic Cannon 6 | . 23 20 18 2 . . . . . . . . . . . Piercing Weapon 1 | . . . . . . . . 4 6 6 6 5 2 . . Naked Turns . | . . . . . . . . . . . . . . . . Heaviest Build 37 | 8 24 26 26 37 37 23 21 21 19 19 13 13 35 35 35 Greatest Support 36 | 20 20 20 20 30 35 26 26 26 22 22 22 22 36 36 36 Greatest Overweight (x) 2 | 2 1 1 1 1 1 . . . . . . . . . . Average Overweight (x) . | . . 1 1 . . . . . . . . . . . . Largest Inventory Capacity 4 | 1 1 1 1 2 3 4 4 4 4 4 4 4 4 4 4 Average Capacity 2 | 1 1 1 1 1 2 3 4 4 4 4 4 4 4 4 4 Most Carried 4 | . 1 1 1 2 3 4 4 4 4 4 4 4 4 4 4 Average Carried 2 | . . 1 1 1 2 3 4 3 4 4 4 4 2 4 4 Final Capacity 4 | 1 1 1 1 2 3 4 4 4 4 4 4 4 4 4 4 Final Carried 4 | . 1 1 1 2 3 4 4 4 4 4 4 4 4 4 4 Class Distribution -------------------- 29% | Mutant 16% | Hacker-Sprinter 15% | Scavenger-Sprinter 10% | Wizard-Sprinter 7% | Wizard-Gunner 6% | Tank 5% | Sprinter 4% | Scavenger-Gunner 3% | Scavenger-Tank Dominant Class ---------------- Mutant | -10/Materials Mutant | -10/Mines Mutant | -10/Exiles Tank | -9/Mines Scavenger-Sprinter | -8/Materials Sprinter | -7/Factory Hacker-Sprinter | -7/Waste Hacker-Sprinter | -7/Factory Hacker-Sprinter | -7/Lower Caves Hacker-Sprinter | -7/Lower Caves Hacker-Sprinter | -7/Data Miner Hacker-Sprinter | -6/Proximity Caves Wizard-Sprinter | -6/Factory Wizard-Sprinter | -6/Waste Wizard-Gunner | -6/Factory Resources | -11 -10 -10 -10 -9 -8 -7 -7 -7 -7 -7 -7 -6 -6 -6 -6 ----------- Run | Scr Mat Min Exi Min Mat Fac Was Fac Low Low Dat Pro Fac Was Fac Matter Collected 3076 | 165 447 221 . 348 783 165 . 106 65 20 . 6 235 515 . Remotely . | . . . . . . . . . . . . . . . . Salvage Created 6394 | . 291 275 . 299 1720 1333 . 140 400 77 . 30 576 1253 . Parts 339 | . 28 12 . 37 105 61 . 12 1 3 . 2 22 56 . Haulers Intercepted 11 | . 1 . . . 6 2 . . . . . . 2 . . Recyclers Shooed 1 | . . . . . 1 . . . . . . . . . . Parts Field Recycled . | . . . . . . . . . . . . . . . . Retrieved Matter . | . . . . . . . . . . . . . . . . Parts Self-Destructed 4 | . . . . . . . . . 2 2 . . . . . Prevented . | . . . . . . . . . . . . . . . . Kills | -11 -10 -10 -10 -9 -8 -7 -7 -7 -7 -7 -7 -6 -6 -6 -6 ------- Run | Scr Mat Min Exi Min Mat Fac Was Fac Low Low Dat Pro Fac Was Fac Combat Hostiles Destroyed 81 | . 9 7 . 8 27 19 . 1 . 1 . . 3 6 . Melee 1 | . . . . . . . . . . 1 . . . . . Guns 52 | . . . . 3 27 13 . 1 . . . . 2 6 . Cannons 18 | . 9 7 . 2 . . . . . . . . . . . AOE 9 | . . . . 3 . 5 . . . . . . 1 . . Classes Destroyed 16 | . 7 1 . 1 2 2 . . . . . 1 1 1 . Worker 9 | . 1 . . 2 2 1 . 1 . . . . 2 . . Builder 9 | . 2 . . 3 2 2 . . . . . . . . . Tunneler 2 | . . 1 . . . 1 . . . . . . . . . Hauler 11 | . 1 . . . 6 2 . . . . . . 2 . . Recycler 9 | . 2 1 . . 3 3 . . . . . . . . . Operator 5 | . . . . . 1 3 . 1 . . . . . . . Watcher 9 | . 1 . . . 3 2 . 1 . . . . 2 . . Swarmer 19 | . 6 3 . 6 4 . . . . . . . . . . Grunt 36 | . 3 4 . . 13 14 . . . . . . 2 . . Brawler 1 | . . . . . . 1 . . . . . . . . . Duelist 1 | . . . . . . 1 . . . . . . . . . Sentry 14 | . . . . 2 9 3 . . . . . . . . . Hunter 3 | . . . . . 1 . . 1 . 1 . . . . . Programmer 1 | . . . . . . . . . . . . . 1 . . Compactor 6 | . . . . . . . . . . . . . . 6 . Tinkerer 1 | . . . . . . . . . . . . 1 . . . Best Kill Streak 10 | . 3 4 . 3 7 10 . 2 . 1 . . 3 3 . Combat Bots Only 7 | . 3 3 . 3 4 7 . 1 . 1 . . 2 3 . Max Kills in Single Turn 7 | . 2 1 . 2 2 7 . 1 . 1 . 1 1 2 . Gunslinging 1 | . . . . . 1 . . . . . . . . . . Exploded 5 | . . . . 2 . 5 . . . . . . 1 . . Melee 1 | . . . . . . . . . . 1 . . . . . Uniques/NPCs Destroyed 1 | . . . . 1 . . . . . . . . . . . YI-UF0 (-9/Mines) Combat | -11 -10 -10 -10 -9 -8 -7 -7 -7 -7 -7 -7 -6 -6 -6 -6 -------- Run | Scr Mat Min Exi Min Mat Fac Was Fac Low Low Dat Pro Fac Was Fac Damage Taken 3429 | . 287 336 . 289 976 1225 . 74 . . 188 19 35 . . Core 2590 | . 162 206 . 195 739 1008 . 60 . . 178 15 27 . . Absorbed by Shields . | . . . . . . . . . . . . . . . . Redirected to Core 1974 | . 129 183 . 168 638 728 . 50 . . 36 15 27 . . Core Remaining (%) 74 | 100 . . . 69 96 . . . . . . 33 . . . Volleys Fired 325 | . 42 27 . 29 100 76 . 4 . 4 . . 17 26 . Largest 4 | . 2 2 . 3 3 3 . 2 . 2 . . 4 4 . Hottest 183 | . 78 78 . 147 183 183 . 122 . 122 . . 140 140 . Shots Fired 844 | . 75 54 . 58 290 203 . 8 . 8 . 3 42 103 . Gun 655 | . . . . 29 271 193 . 8 . 8 . 3 40 103 . Cannon 175 | . 75 54 . 27 19 . . . . . . . . . . Launcher 3 | . . . . 2 . 1 . . . . . . . . . Special 11 | . . . . . . 9 . . . . . . 2 . . Kinetic 411 | . 75 54 . 36 123 . . . . . . . 20 103 . Thermal 427 | . . . . 20 167 201 . 8 . 8 . 3 20 . . Explosive 2 | . . . . 2 . . . . . . . . . . . Electromagnetic 1 | . . . . . . 1 . . . . . . . . . Robot Hit Streak 21 | . 7 6 . 13 14 20 . 6 . 3 . 4 16 21 . Robot Miss Streak 7 | . 3 5 . 2 7 2 . 1 . 1 . . 2 2 . Penetration Max 1 | . . . . . . . . . . . . . 1 1 . Secondary Targets 9 | . . . . . 5 3 . . . . . . . 1 . Max Gunslinging Chain 1 | . . . . . 1 1 . . . . . . . 1 . Shots Hit Robots 553 | . 32 31 . 26 173 141 . 9 8 7 1 3 34 88 . Core Hits 228 | . 17 11 . 19 80 58 . 5 4 2 . 2 15 15 . Critical Hits 41 | . . . . . 1 2 . . . . . . 7 31 . Critical Kills 9 | . . . . . . . . . . . . . 3 6 . Critical Parts Destroyed 11 | . . . . . 1 2 . . . . . . 4 4 . Melee Attacks 46 | . . . . . . . . 8 11 1 17 . 9 . . Impact . | . . . . . . . . . . . . . . . . Slashing . | . . . . . . . . . . . . . . . . Piercing 46 | . . . . . . . . 8 11 1 17 . 9 . . Sneak Attacks 3 | . . . . . . . . 1 . 1 1 . . . . Combat Hostiles 1 | . . . . . . . . . . 1 . . . . . Follow-up Attacks . | . . . . . . . . . . . . . . . . Damage Inflicted 11390 | . 689 653 . 630 2657 3811 . 351 687 209 94 60 677 872 . Guns 6935 | . . . . 258 2514 2600 . 100 . 120 . 60 411 872 . Cannons 1713 | . 689 653 . 228 143 . . . . . . . . . . Explosions 1434 | . . . . 144 . 1146 . . . . . . 144 . . Melee 1243 | . . . . . . . . 251 687 89 94 . 122 . . Ramming . | . . . . . . . . . . . . . . . . Kinetic 3537 | . 689 653 . 276 886 . . . . . . . 161 872 . Thermal 6496 | . . . . 242 1771 3809 . 100 . 120 . 60 394 . . Explosive 112 | . . . . 112 . . . . . . . . . . . Electromagnetic 2 | . . . . . . 2 . . . . . . . . . Impact . | . . . . . . . . . . . . . . . . Slashing . | . . . . . . . . . . . . . . . . Piercing 1243 | . . . . . . . . 251 687 89 94 . 122 . . Highest Corruption 14 | . 2 2 2 2 1 1 10 10 10 10 10 10 1 14 14 Average Corruption 4 | . 2 2 2 2 1 1 5 10 10 10 10 10 1 9 9 Corruption Purged 9 | . . . . . . . . . . . . . . . 9 Effects 112 | . 1 4 4 6 2 . 1 19 10 9 6 9 2 24 15 Message Errors 18 | . . 2 . 3 . . 1 4 1 1 1 . 1 2 2 Matter Fused 14 | . . . . . . . . 2 . 1 1 1 . 1 8 Heat Flow Errors 6 | . . . 1 . . . . . . 1 . 1 . 1 2 Energy Discharges 12 | . . . 1 1 . . . 2 2 1 1 1 . 1 2 Data Loss (minor) 18 | . 1 2 2 1 2 . . 2 3 . . 1 . 3 1 Data Loss (major) 1 | . . . . . . . . . . . . . . 1 . Misfires 4 | . . . . . . . . 1 . . . 3 . . . Alerts 2 | . . . . . . . . . . 2 . . . . . Misdirections 16 | . . . . . . . . 7 3 2 2 1 . 1 . Targeting Errors 20 | . . . . 1 . . . 1 1 1 1 1 1 13 . Weapon Failures 1 | . . . . . . . . . . . . . . 1 . Overload Shots . | . . . . . . . . . . . . . . . . Overflow Damage 648 | . 9 6 . . . 247 . 2 281 . 84 . 19 . . Projectiles 15 | . 9 6 . . . . . . . . . . . . . Explosions 266 | . . . . . . 247 . . . . . . 19 . . Melee 367 | . . . . . . . . 2 281 . 84 . . . . Knockbacks 12 | . 6 6 . . . . . . . . . . . . . Impact . | . . . . . . . . . . . . . . . . Kinetic 12 | . 6 6 . . . . . . . . . . . . . Secondary . | . . . . . . . . . . . . . . . . Self-Inflicted Damage 33 | . . . . 30 . 3 . . . . . . . . . Shots 2 | . . . . 1 . 1 . . . . . . . . . Rammed 2 | . 2 . . . . . . . . . . . . . . Targets Rammed 2 | . 2 . . . . . . . . . . . . . . Kicked . | . . . . . . . . . . . . . . . . Crushed . | . . . . . . . . . . . . . . . . Highest Temperature 403 | . 111 90 187 48 403 48 . . . 84 . 183 150 369 267 Average Temperature 48 | . 32 23 104 14 151 16 . . . 36 . 108 74 73 135 Received Heat Transfer 1236 | . 60 90 . 63 432 558 . . . . 24 9 . . . Siege Activations . | . . . . . . . . . . . . . . . . Robots Corrupted . | . . . . . . . . . . . . . . . . Combat Hostiles . | . . . . . . . . . . . . . . . . Parts Fried . | . . . . . . . . . . . . . . . . Impact Corruptions . | . . . . . . . . . . . . . . . . Robots Melted 1 | . . . . . . 1 . . . . . . . . . Combat Hostiles 1 | . . . . . . 1 . . . . . . . . . Parts Melted 28 | . . . . . 8 20 . . . . . . . . . Heat Transferred 11632 | . . . . 494 4144 5932 . 185 . 222 . 111 544 . . Parts Sabotaged . | . . . . . . . . . . . . . . . . Parts Stolen 1 | . . . . . . . . . . 1 . . . . . Parts Stripped . | . . . . . . . . . . . . . . . . Power Chain Reactions . | . . . . . . . . . . . . . . . . Missiles Intercepted . | . . . . . . . . . . . . . . . . Alert | -11 -10 -10 -10 -9 -8 -7 -7 -7 -7 -7 -7 -6 -6 -6 -6 ------- Run | Scr Mat Min Exi Min Mat Fac Was Fac Low Low Dat Pro Fac Was Fac Peak Influence 721 | . 289 209 . 345 721 689 203 422 . . . . 510 193 135 Average Influence 226 | . 145 94 . 196 358 310 192 267 . . . . 230 184 124 Maximum Alert Level 3 | . 1 1 . 1 3 2 1 2 . . . . 2 . . Low Security (%) 53 | 100 70 85 . 57 24 28 70 33 . . . . 38 100 100 Level 1 32 | . 29 14 . 42 36 47 29 64 . . . . 37 . . Level 2 13 | . . . . . 36 24 . 1 . . . . 23 . . Level 3 . | . . . . . 2 . . . . . . . . . . Level 4 . | . . . . . . . . . . . . . . . . Level 5 . | . . . . . . . . . . . . . . . . High Security . | . . . . . . . . . . . . . . . . Max Security . | . . . . . . . . . . . . . . . . Squads Dispatched 26 | . 1 . . . 5 11 . 5 . . . . 4 . . Investigation 13 | . 1 . . . 3 3 . 4 . . . . 2 . . Extermination 1 | . . . . . . 1 . . . . . . . . . Reinforcement 6 | . . . . . 1 3 . 1 . . . . 1 . . Assault 2 | . . . . . 1 1 . . . . . . . . . Garrison 4 | . . . . . . 3 . . . . . . 1 . . Intercept . | . . . . . . . . . . . . . . . . Construction Impeded 3 | . . . . . . 2 . . . . . . 1 . . Haulers Reinforced 1 | . . . . . . 1 . . . . . . . . . Stealth | -11 -10 -10 -10 -9 -8 -7 -7 -7 -7 -7 -7 -6 -6 -6 -6 --------- Run | Scr Mat Min Exi Min Mat Fac Was Fac Low Low Dat Pro Fac Was Fac Distress Signals 12 | . 3 . . . 5 4 . . . . . . . . . Communications Jammed . | . . . . . . . . . . . . . . . . Distress Signals . | . . . . . . . . . . . . . . . . Times Spotted 150 | . 21 10 . 8 37 35 2 9 . 1 4 3 12 8 . Peak Tracking Total 9 | . 5 3 . 3 6 9 2 2 . 1 4 3 5 5 . Tactical Retreats 12 | . . . . . 2 3 . 1 . . . 2 2 2 . Traps | -11 -10 -10 -10 -9 -8 -7 -7 -7 -7 -7 -7 -6 -6 -6 -6 ------- Run | Scr Mat Min Exi Min Mat Fac Was Fac Low Low Dat Pro Fac Was Fac Traps Triggered 11 | . 1 . . . 1 6 . . . . . . 3 . . Indirectly . | . . . . . . . . . . . . . . . . Trap Hack Attempts . | . . . . . . . . . . . . . . . . Triggered . | . . . . . . . . . . . . . . . . Disarmed . | . . . . . . . . . . . . . . . . Reprogrammed . | . . . . . . . . . . . . . . . . Reused . | . . . . . . . . . . . . . . . . Traps Extracted . | . . . . . . . . . . . . . . . . Installed . | . . . . . . . . . . . . . . . . Triggered 1 | . . . . . . . . . 1 . . . . . . Machines | -11 -10 -10 -10 -9 -8 -7 -7 -7 -7 -7 -7 -6 -6 -6 -6 ---------- Run | Scr Mat Min Exi Min Mat Fac Was Fac Low Low Dat Pro Fac Was Fac Machines Disabled 23 | . 1 . . 10 2 4 . . . . 1 . 5 . . Max in Single Turn 4 | . 1 . . 1 1 4 . . . . 1 . 4 . . Garrison Access 2 | . . . . . 1 . . 1 . . . . . . . Machines Sabotaged . | . . . . . . . . . . . . . . . . Garrisons Compromised . | . . . . . . . . . . . . . . . . Overloaded Fab Kills . | . . . . . . . . . . . . . . . . Fab Network Shutdowns 1 | . . . . . . . . . . . . . 1 . . Hacking | -11 -10 -10 -10 -9 -8 -7 -7 -7 -7 -7 -7 -6 -6 -6 -6 --------- Run | Scr Mat Min Exi Min Mat Fac Was Fac Low Low Dat Pro Fac Was Fac Machines Accessed 49 | . 6 . . . 12 6 . 14 . . 4 1 6 . . Terminals 36 | . 5 . . . 11 5 . 9 . . . 1 5 . . Fabricators 6 | . . . . . . 1 . 4 . . . . 1 . . Repair Stations . | . . . . . . . . . . . . . . . . Recycling Units 1 | . 1 . . . . . . . . . . . . . . Scanalyzers . | . . . . . . . . . . . . . . . . Garrison Access 2 | . . . . . 1 . . 1 . . . . . . . Total Hacks 185 | . 17 . . . 38 14 . 50 . . 28 4 34 . . Successful 116 | . 12 . . . 23 4 . 23 . . 28 1 25 . . Failed 68 | . 5 . . . 15 10 . 27 . . . 3 8 . . Catastrophic 15 | . . . . . . 7 . 6 . . . 1 1 . . Database Lockouts 1 | . . . . . . . . . . . . . 1 . . Manual 122 | . 17 . . . 37 8 . 34 . . . 4 22 . . Terminals 126 | . 15 . . . 37 12 . 33 . . . 4 25 . . Fabricators 27 | . . . . . . 2 . 16 . . . . 9 . . Repair Stations . | . . . . . . . . . . . . . . . . Recycling Units 2 | . 2 . . . . . . . . . . . . . . Scanalyzers . | . . . . . . . . . . . . . . . . Garrison Access 2 | . . . . . 1 . . 1 . . . . . . . Terminal Hacks 72 | . 6 . . . 15 3 . 9 . . 28 1 10 . . Record 11 | . . . . . . . . . . . 11 . . . . Part Schematic 16 | . . . . . 3 . . 2 . . 9 . 2 . . Robot Schematic 5 | . . . . . . . . . . . 5 . . . . Prototype ID Bank 3 | . . . . . . . . . . . 3 . . . . Level Access Points 1 | . . . . . . . . . . . . 1 . . . Branch Access Points 3 | . . . . . 1 . . 1 . . . . 1 . . Terminal Index 3 | . . . . . . 1 . 1 . . . . 1 . . Fabricator Index 4 | . . . . . . 1 . 1 . . . . 2 . . Alert Level 6 | . 2 . . . 3 . . 1 . . . . . . . Unreport Threat 3 | . . . . . 3 . . . . . . . . . . Locate Traps 1 | . . . . . . . . . . . . . 1 . . Recall Investigation 1 | . . . . . . . . . . . . . 1 . . Recall Assault 1 | . . . . . 1 . . . . . . . . . . Hauler Manifests 3 | . . . . . 1 1 . 1 . . . . . . . Zone Layout 11 | . 4 . . . 3 . . 2 . . . . 2 . . Fabricator Hacks 13 | . . . . . . . . 7 . . . . 6 . . Load Schematic 6 | . . . . . . . . 4 . . . . 2 . . Build 7 | . . . . . . . . 3 . . . . 4 . . Repair Station Hacks . | . . . . . . . . . . . . . . . . Recycling Unit Hacks . | . . . . . . . . . . . . . . . . Scanalyzer . | . . . . . . . . . . . . . . . . Garrison Access Hacks 2 | . . . . . 1 . . 1 . . . . . . . Seal Access 2 | . . . . . 1 . . 1 . . . . . . . Unauthorized Hacks 73 | . 13 . . . 18 6 . 17 . . . . 19 . . Terminals 24 | . 5 . . . 7 1 . 5 . . . . 6 . . Assimilate 4 | . . . . . . 1 . 1 . . . . 2 . . Botnet 19 | . 5 . . . 7 . . 4 . . . . 3 . . Detonate 1 | . . . . . . . . . . . . . 1 . . Fabricators 4 | . . . . . . . . 1 . . . . 3 . . Report 1 | . . . . . . . . . . . . . 1 . . Prioritize 2 | . . . . . . . . 1 . . . . 1 . . Siphon 1 | . . . . . . . . . . . . . 1 . . Repair Stations . | . . . . . . . . . . . . . . . . Recycling Units 1 | . 1 . . . . . . . . . . . . . . Tunnel 1 | . 1 . . . . . . . . . . . . . . Scanalyzers . | . . . . . . . . . . . . . . . . Garrison Access . | . . . . . . . . . . . . . . . . Data Cores Recovered . | . . . . . . . . . . . . . . . . Used . | . . . . . . . . . . . . . . . . Hacking Detections 35 | . 4 . . . 8 6 . 11 . . . 1 5 . . Full Trace Events 12 | . . . . . 4 3 . 4 . . . . 1 . . Feedback Events 1 | . . . . . . 1 . . . . . . . . . Corruption 1 | . . . . . . 1 . . . . . . . . . Feedback Blocked . | . . . . . . . . . . . . . . . . Robot Schematics Acquired 5 | . . . . . . . . . . . 5 . . . . Robots Built . | . . . . . . . . . . . . . . . . Matter . | . . . . . . . . . . . . . . . . Time . | . . . . . . . . . . . . . . . . Total Robot Build Rating . | . . . . . . . . . . . . . . . . Part Schematics Acquired 16 | . . . . . 3 . . 2 . . 9 . 2 . . Parts Built 11 | . . . . . . . . 5 . . . . 6 . . Matter 1137 | . . . . . . . . 482 . . . . 655 . . Time 245 | . . . . . . . . 120 . . . . 125 . . Total Part Build Rating 53 | . . . . . . . . 19 . . . . 34 . . Parts Repaired . | . . . . . . . . . . . . . . . . Time . | . . . . . . . . . . . . . . . . Parts Recycled . | . . . . . . . . . . . . . . . . Recycled Matter . | . . . . . . . . . . . . . . . . Retrieved Matter . | . . . . . . . . . . . . . . . . Retrieved Components . | . . . . . . . . . . . . . . . . Parts Scanalyzed . | . . . . . . . . . . . . . . . . Part Schematics Acquired . | . . . . . . . . . . . . . . . . Parts Damaged . | . . . . . . . . . . . . . . . . Bothacking | -11 -10 -10 -10 -9 -8 -7 -7 -7 -7 -7 -7 -6 -6 -6 -6 ------------ Run | Scr Mat Min Exi Min Mat Fac Was Fac Low Low Dat Pro Fac Was Fac Used RIF Installer . | . . . . . . . . . . . . . . . . Robots Hacked 2 | . . . . . . 1 . . . . . . 1 . . Non-combat 2 | . . . . . . 1 . . . . . . 1 . . Combat . | . . . . . . . . . . . . . . . . Robot Hacks Applied 2 | . . . . . . 1 . . . . . . 1 . . find_chute 2 | . . . . . . 1 . . . . . . 1 . . Relay Couplers Released . | . . . . . . . . . . . . . . . . Robots Rewired 1 | . . . . . . . . . . . . . 1 . . Allies Hacked . | . . . . . . . . . . . . . . . . Hacks Repelled . | . . . . . . . . . . . . . . . . Allies | -11 -10 -10 -10 -9 -8 -7 -7 -7 -7 -7 -7 -6 -6 -6 -6 -------- Run | Scr Mat Min Exi Min Mat Fac Was Fac Low Low Dat Pro Fac Was Fac Total Allies 6 | . . 2 . . . 1 . 1 . . . . 2 . . Largest Group 2 | . . 2 2 . . 1 . 1 . . . . 2 . . Highest-Rated Group 44 | . . 38 38 . . 10 . 26 . . . . 44 . . Highest-Rated Ally 34 | . . 31 31 . . 10 . 26 . . . . 34 . . Total Orders . | . . . . . . . . . . . . . . . . Ally Attacks 13 | . . 8 . . . . . . . . . . 5 . . Total Damage 495 | . . 125 . . . . . . . . . . 370 . . Kills 5 | . . 3 . . . . . . . . . . 2 . . Allies Corrupted . | . . . . . . . . . . . . . . . . Allies Melted . | . . . . . . . . . . . . . . . . Intel | -11 -10 -10 -10 -9 -8 -7 -7 -7 -7 -7 -7 -6 -6 -6 -6 ------- Run | Scr Mat Min Exi Min Mat Fac Was Fac Low Low Dat Pro Fac Was Fac Robot Analysis Total . | . . . . . . . . . . . . . . . . Derelict Logs Recovered 8 | . . 2 . 2 . . . . 2 1 . 1 . . . Drone Launches . | . . . . . . . . . . . . . . . . Drone Recoveries . | . . . . . . . . . . . . . . . . Exploration | -11 -10 -10 -10 -9 -8 -7 -7 -7 -7 -7 -7 -6 -6 -6 -6 ------------- Run | Scr Mat Min Exi Min Mat Fac Was Fac Low Low Dat Pro Fac Was Fac Turns Passed 6522 | 32 820 673 216 655 1091 856 31 378 183 164 76 167 537 212 431 Spaces Moved 6457 | 23 466 344 145 364 1004 1269 84 712 393 348 104 164 819 211 7 Core 8 | 8 . . . . . . . . . . . . . . . Treads . | . . . . . . . . . . . . . . . . Legs 1509 | 15 466 344 145 364 175 . . . . . . . . . . Wheels . | . . . . . . . . . . . . . . . . Hover . | . . . . . . . . . . . . . . . . Flight 4940 | . . . . . 829 1269 84 712 393 348 104 164 819 211 7 Fastest Speed 28 | 50 120 150 150 120 30 30 30 30 32 32 32 32 28 28 28 Average Speed 57 | 108 142 150 150 146 49 30 30 31 32 32 32 32 30 28 28 Slowest Speed 150 | 150 150 150 150 150 150 32 30 32 32 35 32 32 32 28 28 Overloaded Moves . | . . . . . . . . . . . . . . . . Propulsion Burnouts . | . . . . . . . . . . . . . . . . Robots Hopped 37 | . . . . . 7 15 . 5 . . . . 10 . . Cave-ins Triggered . | . . . . . . . . . . . . . . . . Exploration Rate (%) 57 | 3 76 75 56 86 80 38 75 26 63 52 77 39 21 99 . Regions Visited 15 Branch Regions 7 Pre-discovered Areas 4 | . 1 1 . 1 . . . . . . 1 . . . . Known Exits Taken 6 | . . . . . 1 . . 1 1 1 1 1 . . . Unknown Exits Taken 5 | 1 1 1 1 1 . . . . . . . . . . . Scrap Searched 7 | . . 1 . 2 . . . . 1 2 . 1 . . . Spaces Dug 34 | . 3 . . 13 1 . . 3 3 . 7 . 4 . . Terrain Destroyed 94 | . 6 3 . 30 1 32 . 3 3 . 7 . 9 . . Melee 17 | . . . . . . . . 3 3 . 7 . 4 . . Projectile 10 | . 6 3 . . 1 . . . . . . . . . . AOE 67 | . . . . 30 . 32 . . . . . . 5 . . Actions | -11 -10 -10 -10 -9 -8 -7 -7 -7 -7 -7 -7 -6 -6 -6 -6 --------- Run | Scr Mat Min Exi Min Mat Fac Was Fac Low Low Dat Pro Fac Was Fac Total 8452 | 27 544 446 144 437 1374 1554 89 839 433 389 120 277 1045 298 436 Wait 1352 | . 15 73 . 15 166 145 4 108 30 36 . 114 184 33 429 Move 6370 | 22 465 343 144 363 989 1239 83 701 392 347 103 163 799 210 7 Hop 37 | . . . . . 7 15 . 5 . . . . 10 . . Pick Up 14 | . 2 . . 2 3 4 . 1 . . . . . 2 . Fast Attach 75 | 5 7 3 . 2 25 18 1 6 . 1 . . 7 . . Attach 3 | . . . . 1 . . . . . . . . 2 . . Detach 2 | . . . . . . . . . . . . . 2 . . Swap 22 | . . . . 7 4 7 . . . . . . 3 1 . Drop 63 | . 5 . . 5 27 12 1 6 . . . . 5 2 . Fire 325 | . 42 27 . 29 100 76 . 4 . 4 . . 17 26 . Melee 46 | . . . . . . . . 8 11 1 17 . 9 . . Ram . | . . . . . . . . . . . . . . . . Kick 2 | . 2 . . . . . . . . . . . . . . Crush . | . . . . . . . . . . . . . . . . Escape Stasis 7 | . . . . . . . . . . . . . 7 . . Rewire . | . . . . . . . . . . . . . . . . Trap . | . . . . . . . . . . . . . . . . Miscellaneous 134 | . 6 . . 13 53 38 . . . . . . . 24 . Route ------- -11/Scrapyard -10/Materials (discovered 3 exits: [*Mat] / [*Min x2]) -10/Mines (discovered 2 exits: [*Mat] / [*Exi]) -10/Exiles (discovered 2 exits: [*Min x2]) -9/Mines -8/Materials (discovered 3 exits: *Fac x3) -7/Factory -7/Waste -7/Factory (discovered 2 exits: *Low x2) -7/Lower Caves -7/Lower Caves -7/Data Miner -6/Proximity Caves -6/Factory (discovered 4 exits: Low x2 / *Ext x2) -6/Waste -6/Factory History --------- Turn | Location | Event 1 | -11/Scrapyard | Upgraded with Propulsion slot (x1) 1 | -11/Scrapyard | Upgraded with Utility slot (x2) 1 | -11/Scrapyard | Upgraded with Weapon slot (x1) 10 | -11/Scrapyard | Discovered new exit (range 16) 33 | -11/Scrapyard | Entered Materials 139 | -10/Materials | Discovered new exit (range 15) 312 | -10/Materials | Build established: Mutant 551 | -10/Materials | Discovered new exit (range 16) 829 | -10/Materials | Discovered new exit (range 9) 853 | -10/Materials | Entered Mines 855 | -10/Mines | Reached level 2 855 | -10/Mines | Upgraded with Utility slot (x1) 935 | -10/Mines | Discovered new exit (range 10) 1156 | -10/Mines | Learned Materials emergency access door positions 1278 | -10/Mines | Learned location of Storage (-9) 1344 | -10/Mines | Reached level 3 1358 | -10/Mines | Upgraded with Propulsion slot (x1) 1358 | -10/Mines | Upgraded with Utility slot (x1) 1469 | -10/Mines | Deemed a non-threat by the Exiles lab entrance 1469 | -10/Mines | Discovered new exit (range 5) 1526 | -10/Mines | Entered Exiles 1526 | -10/Exiles | Accompanied by 2 allies 1546 | -10/Exiles | Discovered new exit (range 15) 1556 | -10/Exiles | Led the pair of lost Derelicts to a safe place 1564 | -10/Exiles | Met 8R-AWN 1586 | -10/Exiles | Met EX-HEX 1643 | -10/Exiles | Met EX-DEC 1730 | -10/Exiles | Discovered new exit (range 10) 1742 | -10/Exiles | Entered Mines 1811 | -9/Mines | Reached level 4 1815 | -9/Mines | Upgraded with Weapon slot (x1) 1848 | -9/Mines | Learned 8 Materials zone layouts 1887 | -9/Mines | Core integrity fell below 50% 2232 | -9/Mines | Build established: Tank 2241 | -9/Mines | Learned location of Recycling (-9) 2348 | -9/Mines | Assisted by bots powering up and referring to "LRC-V3" 2358 | -9/Mines | Destroyed YI-UF0 2378 | -9/Mines | Discovered new exit (range 14) 2397 | -9/Mines | Entered Materials 2398 | -8/Materials | Identified exit to Factory 2399 | -8/Materials | Reached level 5 2526 | -8/Materials | Reached level 6 2537 | -8/Materials | Upgraded with Propulsion slot (x1) 2976 | -8/Materials | Reached level 7 2996 | -8/Materials | Upgraded with Utility slot (x1) 3077 | -8/Materials | Discovered exit to Factory (range 15) 3121 | -8/Materials | Build established: Scavenger-Sprinter 3197 | -8/Materials | First assault squad dispatched 3276 | -8/Materials | Reached level 8 3455 | -8/Materials | Discovered exit to Factory (range 5) 3488 | -8/Materials | Entered Factory 3490 | -7/Factory | Reached level 9 3670 | -7/Factory | Garrison activated, responded to threat 3697 | -7/Factory | Core integrity fell below 50% 3769 | -7/Factory | Core integrity fell below 20% 3996 | -7/Factory | Reached level 10 4005 | -7/Factory | Upgraded with Utility slot (x1) 4140 | -7/Factory | Build established: Sprinter 4218 | -7/Factory | Reached level 11 4221 | -7/Factory | Upgraded with Weapon slot (x1) 4252 | -7/Factory | Destroyed 7 combat bots 4288 | -7/Factory | First assault squad dispatched 4344 | -7/Factory | Sucked down chute 4344 | -7/Factory | Entered Waste 4347 | -7/Waste | Spotted C-40 Crusher 4348 | -7/Waste | Spotted C-40 Crusher 4350 | -7/Waste | Spotted C-40 Crusher 4356 | -7/Waste | Spotted C-40 Crusher 4359 | -7/Waste | EMP discharged 4359 | -7/Waste | System corruption reached 10% 4365 | -7/Waste | Spotted C-40 Crusher 4366 | -7/Waste | Discovered new exit (range 12) 4375 | -7/Waste | Identified exit to Factory 4375 | -7/Waste | Entered Factory 4406 | -7/Factory | Identified exit to Lower Caves 4461 | -7/Factory | Fabricated Spear (x2) 4503 | -7/Factory | Build established: Hacker-Sprinter 4607 | -7/Factory | Fabricated Xenon Bombardment Thruster (x2) 4700 | -7/Factory | Fabricated Hacking Suite (x1) 4753 | -7/Factory | Entered Lower Caves 4755 | -7/Lower Caves | Reached level 12 4845 | -7/Lower Caves | Learned Factory security intel 4905 | -7/Lower Caves | Discovered new exit (range 10) 4907 | -7/Lower Caves | Identified exit to Lower Caves 4936 | -7/Lower Caves | Entered another Lower Caves area 4952 | -7/Lower Caves | Cld. Deuterium Engine stolen by Master Thief 5099 | -7/Lower Caves | Discovered new exit (range 5) 5100 | -7/Lower Caves | Identified exit to Data Miner 5100 | -7/Lower Caves | Entered Data Miner 5100 | -7/Data Miner | Discovered new exit (range 6) 5107 | -7/Data Miner | Met Data Miner 5113 | -7/Data Miner | Learned location of Section 7 (-2) 5113 | -7/Data Miner | Acquired the access code to Warlord's prototype stash 5117 | -7/Data Miner | Received God Mode back door access code from Data Miner 5126 | -7/Data Miner | Data Conduit disabled 5175 | -7/Data Miner | Identified exit to Proximity Caves 5176 | -7/Data Miner | Entered Proximity Caves 5178 | -6/Proximity Caves | Reached level 13 5179 | -6/Proximity Caves | Upgraded with Utility slot (x1) 5194 | -6/Proximity Caves | Identified exit to Factory 5343 | -6/Proximity Caves | Entered Factory 5344 | -6/Factory | Identified exit to Extension 5344 | -6/Factory | Core integrity fell below 50% 5345 | -6/Factory | Reached level 14 5519 | -6/Factory | Central database locked down 5529 | -6/Factory | Reached level 15 5543 | -6/Factory | Garrison activated, responded to threat 5634 | -6/Factory | Fabricated Hyp. Coil Gun (x2) 5661 | -6/Factory | Build established: Wizard-Sprinter 5667 | -6/Factory | Fabricated Hyp. Coil Gun (x2) 5672 | -6/Factory | Spotted B-75 Beast 5678 | -6/Factory | Identified exit to Lower Caves 5725 | -6/Factory | Fabricated Imp. Hacking Suite (x1) 5750 | -6/Factory | Fabricated Imp. Hacking Suite (x1) 5752 | -6/Factory | Local fabrication network quarantined 5880 | -6/Factory | Sucked down chute 5880 | -6/Factory | Entered Waste 5895 | -6/Waste | EMP discharged 5895 | -6/Waste | Spotted C-40 Crusher 5934 | -6/Waste | Spotted C-40 Crusher 5934 | -6/Waste | Spotted C-40 Crusher 5937 | -6/Waste | Spotted C-40 Crusher 5943 | -6/Waste | Destroyed C-40 Crusher 5943 | -6/Waste | Destroyed C-40 Crusher 5952 | -6/Waste | Spotted C-40 Crusher 5955 | -6/Waste | Destroyed C-40 Crusher 5983 | -6/Waste | Destroyed C-40 Crusher 5995 | -6/Waste | EMP discharged 5995 | -6/Waste | System corruption reached 10% 6003 | -6/Waste | Spotted C-40 Crusher 6008 | -6/Waste | Destroyed C-40 Crusher 6029 | -6/Waste | Destroyed C-40 Crusher 6057 | -6/Waste | Discovered new exit (range 11) 6061 | -6/Waste | Identified exit to Factory 6092 | -6/Waste | Entered Factory 6368 | -6/Factory | Build established: Wizard-Gunner 6523 | -6/Factory | Self-destructed Last Messages --------------- 06189_ System corrupted: Heat flow error (+297). 06213_ MYKXLOA